[Event "Titled Tuesday Blitz March 21 Early 2023"]
[White "Erigaisi Arjun"]
[Black "Real_OceanStorm"]
[WhiteFideId "35009192"]
[WhiteElo "2737"]
[BlackElo "2816"]
[Result "1-0"]
[Round "05"]
[TimeControl "180+2"]
[Date "2023.03.21"]
[WhiteClock "0:01:03"]
[BlackClock "0:00:02"]

1. c4 {[%clk 0:03:00]}  Nf6 {[%clk 0:02:56]} 2. Nc3 {[%clk 0:03:00]}  e6 {[%clk 0:02:56]} 3. e4 {[%clk 0:02:59]}  d6 {[%clk 0:02:57]} 4. e5 {[%clk 0:03:00]}  dxe5 {[%clk 0:02:57]} 5. Nf3 {[%clk 0:02:59]}  Nc6 {[%clk 0:02:57]} 6. Be2 {[%clk 0:02:57]}  Be7 {[%clk 0:02:55]} 7. d3 {[%clk 0:02:57]}  O-O {[%clk 0:02:54]} 8. O-O {[%clk 0:02:57]}  b6 {[%clk 0:02:54]} 9. Re1 {[%clk 0:02:56]}  Bb7 {[%clk 0:02:54]} 10. h3 {[%clk 0:02:55]}  h6 {[%clk 0:02:54]} 11. a3 {[%clk 0:02:54]}  Nd7 {[%clk 0:02:34]} 12. Be3 {[%clk 0:02:51]}  f5 {[%clk 0:02:34]} 13. b4 {[%clk 0:02:45]}  f4 {[%clk 0:02:22]} 14. Bd2 {[%clk 0:02:41]}  Nd4 {[%clk 0:02:19]} 15. Nh2 {[%clk 0:02:17]}  a5 {[%clk 0:01:45]} 16. bxa5 {[%clk 0:02:11]}  Rxa5 {[%clk 0:01:16]} 17. Nb5 {[%clk 0:02:10]}  Rxb5 {[%clk 0:01:12]} 18. cxb5 {[%clk 0:02:10]}  Nc5 {[%clk 0:01:11]} 19. Bb4 {[%clk 0:02:03]}  Bh4 {[%clk 0:01:00]} 20. Bxc5 {[%clk 0:01:59]}  bxc5 {[%clk 0:01:01]} 21. Nf3 {[%clk 0:01:53]}  Kh7 {[%clk 0:00:56]} 22. a4 {[%clk 0:01:47]}  Bd5 {[%clk 0:00:33]} 23. Nxd4 {[%clk 0:01:43]}  exd4 {[%clk 0:00:33]} 24. Bf3 {[%clk 0:01:43]}  Qd7 {[%clk 0:00:32]} 25. Qe2 {[%clk 0:01:37]}  Bxf3 {[%clk 0:00:32]} 26. Qxf3 {[%clk 0:01:38]}  c4 {[%clk 0:00:31]} 27. dxc4 {[%clk 0:01:37]}  d3 {[%clk 0:00:31]} 28. Rad1 {[%clk 0:01:36]}  Rd8 {[%clk 0:00:31]} 29. Qxf4 {[%clk 0:01:32]}  Be7 {[%clk 0:00:31]} 30. Qe4+ {[%clk 0:01:31]}  Kh8 {[%clk 0:00:31]} 31. Qxe6 {[%clk 0:01:32]}  d2 {[%clk 0:00:28]} 32. Re2 {[%clk 0:01:26]}  Qxe6 {[%clk 0:00:10]} 33. Rxe6 {[%clk 0:01:27]}  Bb4 {[%clk 0:00:10]} 34. Re4 {[%clk 0:01:16]}  Kg8 {[%clk 0:00:10]} 35. Kf1 {[%clk 0:01:16]}  g6 {[%clk 0:00:10]} 36. Ke2 {[%clk 0:01:15]}  Kf7 {[%clk 0:00:10]} 37. c5 {[%clk 0:01:15]}  Ba5 {[%clk 0:00:10]} 38. b6 {[%clk 0:01:12]}  cxb6 {[%clk 0:00:10]} 39. cxb6 {[%clk 0:01:13]}  Bxb6 {[%clk 0:00:10]} 40. Rxd2 {[%clk 0:01:13]}  Ra8 {[%clk 0:00:04]} 41. Rd7+ {[%clk 0:01:12]}  Kf8 {[%clk 0:00:04]} 42. Rd6 {[%clk 0:01:11]}  Bd8 {[%clk 0:00:05]} 43. Rxg6 {[%clk 0:01:10]}  h5 {[%clk 0:00:05]} 44. g4 {[%clk 0:01:06]}  hxg4 {[%clk 0:00:05]} 45. hxg4 {[%clk 0:01:07]}  Kf7 {[%clk 0:00:05]} 46. Rc6 {[%clk 0:01:08]}  Ra7 {[%clk 0:00:05]} 47. f4 {[%clk 0:01:08]}  Rb7 {[%clk 0:00:04]} 48. g5 {[%clk 0:01:07]}  Rb2+ {[%clk 0:00:04]} 49. Kf3 {[%clk 0:01:08]}  Rb7 {[%clk 0:00:04]} 50. Kg4 {[%clk 0:01:08]}  Rd7 {[%clk 0:00:04]} 51. a5 {[%clk 0:01:08]}  Bxa5 {[%clk 0:00:02]} 52. Rf6+ {[%clk 0:01:08]}  Kg7 {[%clk 0:00:02]} 53. f5 {[%clk 0:01:04]}  Bc3 {[%clk 0:00:02]} 54. Rfe6 {[%clk 0:01:03]} 1-0


[Site "https://www.chess.com"]

[Event "Titled Tuesday Blitz March 21 Early 2023"]
[White "Galchenko, Matvey"]
[Black "Tsydypov, Zhamsaran"]
[WhiteFideId "24175480"]
[BlackFideId "4108566"]
[WhiteElo "2404"]
[BlackElo "2584"]
[Result "0-1"]
[Round "05"]
[TimeControl "180+2"]
[Date "2023.03.21"]
[WhiteClock "0:01:04"]
[BlackClock "0:01:31"]

1. e4 {[%clk 0:02:56]}  c6 {[%clk 0:02:55]} 2. d4 {[%clk 0:02:53]}  d5 {[%clk 0:02:55]} 3. exd5 {[%clk 0:02:53]}  cxd5 {[%clk 0:02:56]} 4. Bd3 {[%clk 0:02:53]}  g6 {[%clk 0:02:55]} 5. c3 {[%clk 0:02:46]}  Bg7 {[%clk 0:02:55]} 6. Bf4 {[%clk 0:02:45]}  Nc6 {[%clk 0:02:55]} 7. Nd2 {[%clk 0:02:32]}  f6 {[%clk 0:02:55]} 8. Qe2 {[%clk 0:02:21]}  e5 {[%clk 0:02:55]} 9. Bg3 {[%clk 0:02:18]}  Nge7 {[%clk 0:02:54]} 10. Bb5 {[%clk 0:02:13]}  O-O {[%clk 0:02:54]} 11. dxe5 {[%clk 0:02:12]}  fxe5 {[%clk 0:02:54]} 12. Ngf3 {[%clk 0:02:13]}  e4 {[%clk 0:02:50]} 13. Nd4 {[%clk 0:01:43]}  Bxd4 {[%clk 0:02:48]} 14. Bxc6 {[%clk 0:01:43]}  Nxc6 {[%clk 0:02:10]} 15. cxd4 {[%clk 0:01:42]}  Nxd4 {[%clk 0:02:10]} 16. Qd1 {[%clk 0:01:43]}  e3 {[%clk 0:01:53]} 17. Nb3 {[%clk 0:01:08]}  exf2+ {[%clk 0:01:50]} 18. Kf1 {[%clk 0:01:08]}  Nf5 {[%clk 0:01:43]} 19. Qd2 {[%clk 0:01:06]}  d4 {[%clk 0:01:40]} 20. Bf4 {[%clk 0:01:04]}  Qd5 {[%clk 0:01:37]} 21. Rd1 {[%clk 0:01:04]}  Nh4 {[%clk 0:01:31]} 0-1


[Site "https://www.chess.com"]

[Event "Titled Tuesday Blitz March 21 Early 2023"]
[White "Makhnev, Denis"]
[Black "Mahdavi, Reza"]
[WhiteFideId "13707647"]
[BlackFideId "12595926"]
[WhiteElo "2525"]
[BlackElo "2208"]
[Result "1-0"]
[Round "05"]
[TimeControl "180+2"]
[Date "2023.03.21"]
[WhiteClock "0:00:04"]
[BlackClock "0:01:05"]

1. d4 {[%clk 0:03:00]}  Nf6 {[%clk 0:02:51]} 2. c4 {[%clk 0:03:00]}  g6 {[%clk 0:02:51]} 3. g3 {[%clk 0:02:59]}  Bg7 {[%clk 0:02:49]} 4. Bg2 {[%clk 0:02:59]}  O-O {[%clk 0:02:50]} 5. Nc3 {[%clk 0:02:59]}  d6 {[%clk 0:02:49]} 6. Nf3 {[%clk 0:03:00]}  c5 {[%clk 0:02:49]} 7. d5 {[%clk 0:02:57]}  e6 {[%clk 0:02:49]} 8. O-O {[%clk 0:02:58]}  exd5 {[%clk 0:02:50]} 9. cxd5 {[%clk 0:02:58]}  Re8 {[%clk 0:02:51]} 10. Bf4 {[%clk 0:02:59]}  a6 {[%clk 0:02:52]} 11. a4 {[%clk 0:02:58]}  Qc7 {[%clk 0:02:51]} 12. Rc1 {[%clk 0:02:46]}  Nbd7 {[%clk 0:02:50]} 13. h3 {[%clk 0:02:43]}  Nh5 {[%clk 0:02:33]} 14. Bd2 {[%clk 0:02:36]}  Rb8 {[%clk 0:02:28]} 15. Re1 {[%clk 0:02:25]}  b5 {[%clk 0:02:22]} 16. axb5 {[%clk 0:02:25]}  axb5 {[%clk 0:02:23]} 17. b4 {[%clk 0:02:26]}  c4 {[%clk 0:02:20]} 18. e4 {[%clk 0:02:08]}  Ne5 {[%clk 0:02:17]} 19. Nxe5 {[%clk 0:02:03]}  Bxe5 {[%clk 0:02:18]} 20. Be3 {[%clk 0:01:59]}  Bd7 {[%clk 0:02:18]} 21. Qd2 {[%clk 0:01:56]}  Ra8 {[%clk 0:02:17]} 22. g4 {[%clk 0:01:56]}  Nf6 {[%clk 0:02:11]} 23. Ne2 {[%clk 0:00:43]}  Ra3 {[%clk 0:02:05]} 24. f4 {[%clk 0:00:41]}  Bb2 {[%clk 0:02:04]} 25. Qxb2 {[%clk 0:00:40]}  Rxe3 {[%clk 0:01:49]} 26. Qxf6 {[%clk 0:00:40]}  Rd3 {[%clk 0:01:41]} 27. Kh1 {[%clk 0:00:32]}  Qb6 {[%clk 0:01:37]} 28. f5 {[%clk 0:00:20]}  Ra8 {[%clk 0:01:27]} 29. Rf1 {[%clk 0:00:20]}  Be8 {[%clk 0:01:27]} 30. Nf4 {[%clk 0:00:15]}  Rd2 {[%clk 0:01:22]} 31. e5 {[%clk 0:00:15]}  Qd4 {[%clk 0:01:15]} 32. fxg6 {[%clk 0:00:13]}  hxg6 {[%clk 0:01:14]} 33. Nxg6 {[%clk 0:00:07]}  fxg6 {[%clk 0:01:14]} 34. Qf8+ {[%clk 0:00:07]}  Kh7 {[%clk 0:01:14]} 35. Qe7+ {[%clk 0:00:08]}  Kh6 {[%clk 0:01:15]} 36. Rf8 {[%clk 0:00:08]}  Qxe5 {[%clk 0:01:12]} 37. g5+ {[%clk 0:00:05]}  Kh5 {[%clk 0:01:10]} 38. Qh7+ {[%clk 0:00:03]}  Kxg5 {[%clk 0:01:11]} 39. Rg1 {[%clk 0:00:04]}  Ra1 {[%clk 0:01:08]} 40. Bf1+ {[%clk 0:00:03]}  Rg2 {[%clk 0:01:04]} 41. Rxg2+ {[%clk 0:00:04]}  Qg3 {[%clk 0:01:05]} 42. Rxg3# {[%clk 0:00:04]} 1-0


[Site "https://www.chess.com"]

[Event "Titled Tuesday Blitz March 21 Early 2023"]
[White "Ioannidis, Evgenios"]
[Black "Gholami Orimi, Mahdi"]
[WhiteFideId "4229274"]
[BlackFideId "12558486"]
[WhiteElo "2386"]
[BlackElo "2363"]
[Result "0-1"]
[Round "05"]
[TimeControl "180+2"]
[Date "2023.03.21"]
[WhiteClock "0:00:08"]
[BlackClock "0:00:41"]

1. d4 {[%clk 0:03:00]}  Nf6 {[%clk 0:02:55]} 2. c4 {[%clk 0:03:00]}  g6 {[%clk 0:02:54]} 3. Nc3 {[%clk 0:02:59]}  d5 {[%clk 0:02:55]} 4. Nf3 {[%clk 0:02:59]}  Bg7 {[%clk 0:02:55]} 5. Bg5 {[%clk 0:02:59]}  Ne4 {[%clk 0:02:54]} 6. Bf4 {[%clk 0:02:59]}  g5 {[%clk 0:02:55]} 7. Nxg5 {[%clk 0:02:54]}  Nxc3 {[%clk 0:02:48]} 8. bxc3 {[%clk 0:02:54]}  c5 {[%clk 0:02:48]} 9. e3 {[%clk 0:02:47]}  Nc6 {[%clk 0:02:49]} 10. Nf3 {[%clk 0:02:41]}  Qa5 {[%clk 0:02:38]} 11. Qd2 {[%clk 0:02:37]}  dxc4 {[%clk 0:02:29]} 12. Bxc4 {[%clk 0:02:36]}  Bg4 {[%clk 0:02:24]} 13. Ng5 {[%clk 0:02:14]}  Bh5 {[%clk 0:02:11]} 14. O-O {[%clk 0:02:11]}  cxd4 {[%clk 0:02:01]} 15. exd4 {[%clk 0:02:11]}  O-O {[%clk 0:02:00]} 16. Rfe1 {[%clk 0:01:55]}  e5 {[%clk 0:01:53]} 17. dxe5 {[%clk 0:01:39]}  Nxe5 {[%clk 0:01:52]} 18. Bxe5 {[%clk 0:01:16]}  Bxe5 {[%clk 0:01:53]} 19. Nxf7 {[%clk 0:01:17]}  Bxc3 {[%clk 0:01:30]} 20. Ng5+ {[%clk 0:00:19]}  Kh8 {[%clk 0:01:17]} 21. Re7 {[%clk 0:00:16]}  Bg6 {[%clk 0:01:13]} 22. Qc1 {[%clk 0:00:14]}  Rac8 {[%clk 0:01:06]} 23. Be6 {[%clk 0:00:14]}  Bxa1 {[%clk 0:00:57]} 24. Bxc8 {[%clk 0:00:11]}  Bf6 {[%clk 0:00:58]} 25. Nxh7 {[%clk 0:00:10]}  Bxh7 {[%clk 0:00:49]} 26. Re3 {[%clk 0:00:08]}  Bd4 {[%clk 0:00:45]} 27. Rh3 {[%clk 0:00:08]}  Rxf2 {[%clk 0:00:41]} 0-1


[Site "https://www.chess.com"]

[Event "Titled Tuesday Blitz March 21 Early 2023"]
[White "Zakhartsov, Vladimir"]
[Black "Kamsky, Gata"]
[WhiteFideId "4145097"]
[BlackFideId "2000024"]
[WhiteElo "2521"]
[BlackElo "2666"]
[Result "0-1"]
[Round "05"]
[TimeControl "180+2"]
[Date "2023.03.21"]
[WhiteClock "0:00:06"]
[BlackClock "0:01:08"]

1. d4 {[%clk 0:02:55]}  d5 {[%clk 0:02:56]} 2. c4 {[%clk 0:02:55]}  c6 {[%clk 0:02:57]} 3. Nf3 {[%clk 0:02:54]}  Nf6 {[%clk 0:02:57]} 4. Nc3 {[%clk 0:02:54]}  a6 {[%clk 0:02:57]} 5. a4 {[%clk 0:02:52]}  e6 {[%clk 0:02:56]} 6. e3 {[%clk 0:02:51]}  a5 {[%clk 0:02:56]} 7. Bd3 {[%clk 0:02:50]}  Na6 {[%clk 0:02:56]} 8. e4 {[%clk 0:02:46]}  dxe4 {[%clk 0:02:48]} 9. Nxe4 {[%clk 0:02:47]}  Nxe4 {[%clk 0:02:40]} 10. Bxe4 {[%clk 0:02:47]}  Bb4+ {[%clk 0:02:37]} 11. Kf1 {[%clk 0:02:41]}  Be7 {[%clk 0:02:18]} 12. h4 {[%clk 0:02:38]}  f5 {[%clk 0:02:11]} 13. Bc2 {[%clk 0:02:33]}  c5 {[%clk 0:02:08]} 14. Be3 {[%clk 0:02:29]}  O-O {[%clk 0:02:03]} 15. d5 {[%clk 0:02:22]}  Nb4 {[%clk 0:02:01]} 16. Bb3 {[%clk 0:02:21]}  b6 {[%clk 0:01:58]} 17. Kg1 {[%clk 0:02:09]}  Bf6 {[%clk 0:01:57]} 18. Qd2 {[%clk 0:02:01]}  e5 {[%clk 0:01:53]} 19. g3 {[%clk 0:01:55]}  h6 {[%clk 0:01:48]} 20. Kg2 {[%clk 0:01:54]}  Bd7 {[%clk 0:01:43]} 21. Rag1 {[%clk 0:01:48]}  Qe8 {[%clk 0:01:42]} 22. Qd1 {[%clk 0:01:48]}  Rd8 {[%clk 0:01:37]} 23. Bd2 {[%clk 0:01:46]}  e4 {[%clk 0:01:35]} 24. Ne1 {[%clk 0:01:46]}  Bxb2 {[%clk 0:01:27]} 25. Be3 {[%clk 0:01:37]}  Qe5 {[%clk 0:01:24]} 26. Bf4 {[%clk 0:01:22]}  Qf6 {[%clk 0:01:22]} 27. Nc2 {[%clk 0:01:02]}  Nd3 {[%clk 0:01:18]} 28. Ne3 {[%clk 0:01:02]}  Be5 {[%clk 0:01:15]} 29. Bxe5 {[%clk 0:00:59]}  Qxe5 {[%clk 0:01:14]} 30. Bc2 {[%clk 0:00:50]}  f4 {[%clk 0:01:14]} 31. Bxd3 {[%clk 0:00:08]}  fxe3 {[%clk 0:01:13]} 32. f4 {[%clk 0:00:09]}  exf3+ {[%clk 0:01:12]} 33. Kh2 {[%clk 0:00:09]}  e2 {[%clk 0:01:08]} 34. Qd2 {[%clk 0:00:06]}  f2 {[%clk 0:01:08]} 0-1


[Site "https://www.chess.com"]

[Event "Titled Tuesday Blitz March 21 Early 2023"]
[White "Aradhya, Garg"]
[Black "Drygalov, Sergey"]
[WhiteFideId "25006746"]
[BlackFideId "24171743"]
[WhiteElo "2263"]
[BlackElo "2533"]
[Result "0-1"]
[Round "05"]
[TimeControl "180+2"]
[Date "2023.03.21"]
[WhiteClock "0:00:02"]
[BlackClock "0:00:25"]

1. d4 {[%clk 0:03:00]}  Nf6 {[%clk 0:03:00]} 2. c4 {[%clk 0:03:01]}  e6 {[%clk 0:03:00]} 3. Nf3 {[%clk 0:03:01]}  d5 {[%clk 0:03:00]} 4. Nc3 {[%clk 0:03:01]}  c6 {[%clk 0:03:01]} 5. e3 {[%clk 0:02:56]}  Nbd7 {[%clk 0:03:00]} 6. Nd2 {[%clk 0:02:53]}  Bd6 {[%clk 0:02:55]} 7. g3 {[%clk 0:02:53]}  e5 {[%clk 0:02:47]} 8. Bg2 {[%clk 0:02:53]}  e4 {[%clk 0:02:47]} 9. Rb1 {[%clk 0:02:48]}  O-O {[%clk 0:02:46]} 10. b4 {[%clk 0:02:47]}  a6 {[%clk 0:02:34]} 11. Qb3 {[%clk 0:02:46]}  Qe7 {[%clk 0:02:07]} 12. O-O {[%clk 0:02:27]}  dxc4 {[%clk 0:02:04]} 13. Qxc4 {[%clk 0:02:26]}  Nb6 {[%clk 0:02:05]} 14. Qb3 {[%clk 0:02:25]}  Bf5 {[%clk 0:02:04]} 15. a4 {[%clk 0:02:24]}  Nbd5 {[%clk 0:02:04]} 16. b5 {[%clk 0:02:22]}  axb5 {[%clk 0:01:49]} 17. axb5 {[%clk 0:02:22]}  Qe6 {[%clk 0:01:49]} 18. Nc4 {[%clk 0:02:17]}  Bh3 {[%clk 0:01:46]} 19. Nxd6 {[%clk 0:01:35]}  Bxg2 {[%clk 0:01:45]} 20. Kxg2 {[%clk 0:01:36]}  Qxd6 {[%clk 0:01:46]} 21. Bd2 {[%clk 0:01:35]}  Qe6 {[%clk 0:01:45]} 22. bxc6 {[%clk 0:01:29]}  bxc6 {[%clk 0:01:45]} 23. Qc2 {[%clk 0:01:30]}  h5 {[%clk 0:01:41]} 24. h4 {[%clk 0:01:28]}  Qf5 {[%clk 0:01:37]} 25. Qd1 {[%clk 0:01:27]}  Ng4 {[%clk 0:01:26]} 26. Rc1 {[%clk 0:01:09]}  Rfc8 {[%clk 0:01:18]} 27. Qe2 {[%clk 0:00:59]}  Ra3 {[%clk 0:00:40]} 28. Nxd5 {[%clk 0:00:57]}  cxd5 {[%clk 0:00:40]} 29. Bb4 {[%clk 0:00:54]}  Raa8 {[%clk 0:00:38]} 30. Bd6 {[%clk 0:00:51]}  Qf3+ {[%clk 0:00:36]} 31. Qxf3 {[%clk 0:00:50]}  exf3+ {[%clk 0:00:36]} 32. Kg1 {[%clk 0:00:50]}  Rxc1 {[%clk 0:00:36]} 33. Rxc1 {[%clk 0:00:50]}  Ra2 {[%clk 0:00:36]} 34. Rf1 {[%clk 0:00:49]}  f6 {[%clk 0:00:36]} 35. Bc5 {[%clk 0:00:45]}  Kf7 {[%clk 0:00:37]} 36. e4 {[%clk 0:00:45]}  dxe4 {[%clk 0:00:36]} 37. d5 {[%clk 0:00:46]}  Rc2 {[%clk 0:00:34]} 38. Bb6 {[%clk 0:00:41]}  Rd2 {[%clk 0:00:34]} 39. Rc1 {[%clk 0:00:31]}  Rxd5 {[%clk 0:00:34]} 40. Kf1 {[%clk 0:00:31]}  Rd2 {[%clk 0:00:31]} 41. Ke1 {[%clk 0:00:25]}  Re2+ {[%clk 0:00:31]} 42. Kf1 {[%clk 0:00:26]}  Ne5 {[%clk 0:00:25]} 43. Bd4 {[%clk 0:00:20]}  Nd3 {[%clk 0:00:24]} 44. Ra1 {[%clk 0:00:20]}  Kg6 {[%clk 0:00:23]} 45. Kg1 {[%clk 0:00:21]}  Re1+ {[%clk 0:00:21]} 46. Rxe1 {[%clk 0:00:19]}  Nxe1 {[%clk 0:00:22]} 47. Kf1 {[%clk 0:00:20]}  Nd3 {[%clk 0:00:23]} 48. Be3 {[%clk 0:00:19]}  Kf5 {[%clk 0:00:23]} 49. Bd4 {[%clk 0:00:19]}  g5 {[%clk 0:00:24]} 50. Bc3 {[%clk 0:00:18]}  gxh4 {[%clk 0:00:24]} 51. gxh4 {[%clk 0:00:19]}  Ne5 {[%clk 0:00:23]} 52. Kg1 {[%clk 0:00:11]}  Kg4 {[%clk 0:00:23]} 53. Bb4 {[%clk 0:00:09]}  Kxh4 {[%clk 0:00:23]} 54. Be7 {[%clk 0:00:09]}  Kg5 {[%clk 0:00:24]} 55. Kh2 {[%clk 0:00:07]}  Ng4+ {[%clk 0:00:23]} 56. Kg1 {[%clk 0:00:06]}  Kf5 {[%clk 0:00:23]} 57. Bd8 {[%clk 0:00:05]}  h4 {[%clk 0:00:24]} 58. Bc7 {[%clk 0:00:05]}  h3 {[%clk 0:00:24]} 59. Bg3 {[%clk 0:00:04]}  Ke6 {[%clk 0:00:23]} 60. Bf4 {[%clk 0:00:04]}  Kd5 {[%clk 0:00:24]} 61. Bg3 {[%clk 0:00:04]}  Kc4 {[%clk 0:00:24]} 62. Be5 {[%clk 0:00:04]}  fxe5 {[%clk 0:00:24]} 63. Kh1 {[%clk 0:00:02]}  e3 {[%clk 0:00:24]} 64. fxe3 {[%clk 0:00:02]}  f2 {[%clk 0:00:24]} 65. e4 {[%clk 0:00:02]}  f1=Q# {[%clk 0:00:25]} 0-1


[Site "https://www.chess.com"]

[Event "Titled Tuesday Blitz March 21 Early 2023"]
[White "Weetik, Vjacheslav"]
[Black "Durarbayli, Vasif"]
[WhiteFideId "4153472"]
[BlackFideId "13402935"]
[WhiteElo "2469"]
[BlackElo "2543"]
[Result "1-0"]
[Round "05"]
[TimeControl "180+2"]
[Date "2023.03.21"]
[WhiteClock "0:00:08"]
[BlackClock "0:00:01"]

1. d4 {[%clk 0:02:59]}  Nf6 {[%clk 0:02:57]} 2. c4 {[%clk 0:02:59]}  e6 {[%clk 0:02:58]} 3. g3 {[%clk 0:02:58]}  c5 {[%clk 0:02:57]} 4. d5 {[%clk 0:02:55]}  exd5 {[%clk 0:02:58]} 5. cxd5 {[%clk 0:02:55]}  d6 {[%clk 0:02:58]} 6. Nc3 {[%clk 0:02:56]}  g6 {[%clk 0:02:58]} 7. Nf3 {[%clk 0:02:56]}  Bg7 {[%clk 0:02:59]} 8. Bg2 {[%clk 0:02:57]}  O-O {[%clk 0:03:00]} 9. O-O {[%clk 0:02:58]}  Re8 {[%clk 0:03:00]} 10. Bf4 {[%clk 0:02:58]}  h6 {[%clk 0:02:56]} 11. Re1 {[%clk 0:02:35]}  g5 {[%clk 0:02:54]} 12. Bc1 {[%clk 0:02:23]}  Bf5 {[%clk 0:02:53]} 13. Nd2 {[%clk 0:02:23]}  Na6 {[%clk 0:02:43]} 14. e4 {[%clk 0:02:15]}  Bg4 {[%clk 0:02:42]} 15. f3 {[%clk 0:02:05]}  Bh5 {[%clk 0:02:36]} 16. Nc4 {[%clk 0:01:59]}  Nc7 {[%clk 0:01:59]} 17. a4 {[%clk 0:01:44]}  Rb8 {[%clk 0:01:55]} 18. g4 {[%clk 0:01:36]}  Bg6 {[%clk 0:01:54]} 19. Be3 {[%clk 0:01:36]}  b5 {[%clk 0:01:36]} 20. axb5 {[%clk 0:01:27]}  Nxb5 {[%clk 0:01:37]} 21. Na5 {[%clk 0:01:23]}  Nxc3 {[%clk 0:01:15]} 22. bxc3 {[%clk 0:01:24]}  Rb2 {[%clk 0:01:14]} 23. Nc4 {[%clk 0:00:51]}  Rb7 {[%clk 0:00:51]} 24. Ra6 {[%clk 0:00:48]}  Rd7 {[%clk 0:00:50]} 25. Bf2 {[%clk 0:00:42]}  h5 {[%clk 0:00:47]} 26. h3 {[%clk 0:00:39]}  Nh7 {[%clk 0:00:44]} 27. Bg3 {[%clk 0:00:27]}  Bf8 {[%clk 0:00:39]} 28. Qa4 {[%clk 0:00:20]}  hxg4 {[%clk 0:00:30]} 29. hxg4 {[%clk 0:00:21]}  Nf6 {[%clk 0:00:29]} 30. Rxa7 {[%clk 0:00:17]}  Rxa7 {[%clk 0:00:18]} 31. Qxa7 {[%clk 0:00:18]}  Re7 {[%clk 0:00:15]} 32. Qb6 {[%clk 0:00:14]}  Qxb6 {[%clk 0:00:09]} 33. Nxb6 {[%clk 0:00:15]}  Rb7 {[%clk 0:00:10]} 34. Nc4 {[%clk 0:00:16]}  Ne8 {[%clk 0:00:10]} 35. e5 {[%clk 0:00:13]}  dxe5 {[%clk 0:00:09]} 36. Bxe5 {[%clk 0:00:14]}  f6 {[%clk 0:00:08]} 37. Bg3 {[%clk 0:00:12]}  Bf7 {[%clk 0:00:08]} 38. f4 {[%clk 0:00:12]}  Rb3 {[%clk 0:00:06]} 39. fxg5 {[%clk 0:00:11]}  Rxc3 {[%clk 0:00:05]} 40. Ne3 {[%clk 0:00:07]}  fxg5 {[%clk 0:00:04]} 41. Be5 {[%clk 0:00:07]}  Rd3 {[%clk 0:00:04]} 42. Nf5 {[%clk 0:00:07]}  Bxd5 {[%clk 0:00:02]} 43. Bf1 {[%clk 0:00:08]}  Rd2 {[%clk 0:00:01]} 44. Bc3 {[%clk 0:00:08]} 1-0


[Site "https://www.chess.com"]

[Event "Titled Tuesday Blitz March 21 Early 2023"]
[White "Dehtiarov, Roman"]
[Black "Dardha, Daniel"]
[WhiteFideId "14186640"]
[BlackFideId "240990"]
[WhiteElo "2162"]
[BlackElo "2581"]
[Result "0-1"]
[Round "05"]
[TimeControl "180+2"]
[Date "2023.03.21"]
[WhiteClock "0:00:05"]
[BlackClock "0:00:33"]

1. c4 {[%clk 0:02:52]}  b6 {[%clk 0:02:58]} 2. Nc3 {[%clk 0:02:51]}  Bb7 {[%clk 0:02:58]} 3. e4 {[%clk 0:02:52]}  e5 {[%clk 0:02:58]} 4. g3 {[%clk 0:02:51]}  f5 {[%clk 0:02:57]} 5. d3 {[%clk 0:02:51]}  Bb4 {[%clk 0:02:56]} 6. Bg2 {[%clk 0:02:51]}  Nf6 {[%clk 0:02:54]} 7. Bg5 {[%clk 0:02:50]}  Bxc3+ {[%clk 0:02:52]} 8. bxc3 {[%clk 0:02:50]}  fxe4 {[%clk 0:02:52]} 9. Bxe4 {[%clk 0:02:47]}  Bxe4 {[%clk 0:02:49]} 10. dxe4 {[%clk 0:02:48]}  Nc6 {[%clk 0:02:45]} 11. Ne2 {[%clk 0:02:35]}  O-O {[%clk 0:02:35]} 12. O-O {[%clk 0:02:34]}  Qe8 {[%clk 0:02:30]} 13. f3 {[%clk 0:02:31]}  d6 {[%clk 0:02:27]} 14. Qd2 {[%clk 0:02:25]}  Na5 {[%clk 0:02:24]} 15. Qd3 {[%clk 0:01:41]}  Qc6 {[%clk 0:02:18]} 16. Bxf6 {[%clk 0:01:23]}  Rxf6 {[%clk 0:02:19]} 17. Qd5+ {[%clk 0:01:24]}  Kh8 {[%clk 0:02:05]} 18. Rab1 {[%clk 0:01:23]}  Raf8 {[%clk 0:02:02]} 19. Qxc6 {[%clk 0:01:16]}  Nxc6 {[%clk 0:02:00]} 20. Kg2 {[%clk 0:01:16]}  Na5 {[%clk 0:01:54]} 21. Rb4 {[%clk 0:01:17]}  Nb7 {[%clk 0:01:54]} 22. Nc1 {[%clk 0:01:05]}  Nc5 {[%clk 0:01:54]} 23. Rb2 {[%clk 0:00:56]}  Nxe4 {[%clk 0:01:53]} 24. a4 {[%clk 0:00:52]}  Nxc3 {[%clk 0:01:50]} 25. a5 {[%clk 0:00:52]}  Na4 {[%clk 0:01:46]} 26. Ra2 {[%clk 0:00:49]}  Nc5 {[%clk 0:01:45]} 27. axb6 {[%clk 0:00:50]}  axb6 {[%clk 0:01:46]} 28. Ra7 {[%clk 0:00:48]}  R6f7 {[%clk 0:01:45]} 29. Ne2 {[%clk 0:00:46]}  h6 {[%clk 0:01:42]} 30. Nc3 {[%clk 0:00:46]}  c6 {[%clk 0:01:23]} 31. Rxf7 {[%clk 0:00:41]}  Rxf7 {[%clk 0:01:24]} 32. Rb1 {[%clk 0:00:41]}  Rb7 {[%clk 0:01:21]} 33. Rd1 {[%clk 0:00:39]}  Rd7 {[%clk 0:01:04]} 34. Rb1 {[%clk 0:00:38]}  Kg8 {[%clk 0:00:59]} 35. Rxb6 {[%clk 0:00:37]}  Rc7 {[%clk 0:01:00]} 36. Kf2 {[%clk 0:00:31]}  Kf7 {[%clk 0:00:57]} 37. Ke3 {[%clk 0:00:29]}  Ke7 {[%clk 0:00:55]} 38. Rb8 {[%clk 0:00:28]}  Ra7 {[%clk 0:00:52]} 39. Rg8 {[%clk 0:00:19]}  Ne6 {[%clk 0:00:51]} 40. Kd2 {[%clk 0:00:13]}  Rb7 {[%clk 0:00:46]} 41. Ra8 {[%clk 0:00:12]}  Rb4 {[%clk 0:00:45]} 42. Kd3 {[%clk 0:00:12]}  Nc5+ {[%clk 0:00:45]} 43. Kd2 {[%clk 0:00:12]}  Rxc4 {[%clk 0:00:45]} 44. Ra7+ {[%clk 0:00:12]}  Kf6 {[%clk 0:00:45]} 45. Rc7 {[%clk 0:00:08]}  Ne6 {[%clk 0:00:45]} 46. Rc8 {[%clk 0:00:07]}  d5 {[%clk 0:00:44]} 47. Kd3 {[%clk 0:00:02]}  Kf7 {[%clk 0:00:44]} 48. Kd2 {[%clk 0:00:03]}  Nc5 {[%clk 0:00:39]} 49. Rc7+ {[%clk 0:00:02]}  Kf8 {[%clk 0:00:39]} 50. Rc8+ {[%clk 0:00:02]}  Ke7 {[%clk 0:00:39]} 51. Ne2 {[%clk 0:00:03]}  Ne6 {[%clk 0:00:38]} 52. Nc3 {[%clk 0:00:02]}  Kd7 {[%clk 0:00:37]} 53. Ra8 {[%clk 0:00:03]}  Rb4 {[%clk 0:00:37]} 54. Rg8 {[%clk 0:00:03]}  Rb7 {[%clk 0:00:36]} 55. f4 {[%clk 0:00:03]}  exf4 {[%clk 0:00:35]} 56. gxf4 {[%clk 0:00:04]}  Kd6 {[%clk 0:00:35]} 57. f5 {[%clk 0:00:04]}  Nd4 {[%clk 0:00:36]} 58. f6 {[%clk 0:00:03]}  gxf6 {[%clk 0:00:35]} 59. Rg6 {[%clk 0:00:04]}  Ke5 {[%clk 0:00:33]} 60. Rxh6 {[%clk 0:00:04]}  Ra7 {[%clk 0:00:32]} 61. Kd3 {[%clk 0:00:05]}  Ne6 {[%clk 0:00:31]} 62. Rh5+ {[%clk 0:00:05]}  f5 {[%clk 0:00:32]} 63. h4 {[%clk 0:00:05]}  Nf4+ {[%clk 0:00:32]} 64. Ke3 {[%clk 0:00:05]}  Nxh5 {[%clk 0:00:33]} 0-1


[Site "https://www.chess.com"]